{"text_format":"1","workbook":"xlsx","n_sheets":6,"sheets":["Ülesanne","Üldjärjestus","Matemaatika (lai)","Eesti keel","Chart1","GDP"],"not_rendered":{"charts":2,"images":2,"macros":1,"external_links":0,"defined_names":19,"comments":0,"pivot_tables":0},"unopened":[{"sheet":"Chart1","index":4,"reason":"not_a_worksheet"}],"bounds":{"document_bytes":16777216,"sheet_cells":100000,"rows_first":2000,"rows_last":500,"rows_between":2000,"halvings":0,"cell_chars":16384,"cell_head_chars":4096},"cells_cut":0,"cells_raw":0,"read":"whole","date_system":"1900"}

{"sheet":"Ülesanne","index":0,"n_rows":0,"n_cols":0,"rows_kept":0,"cut":false,"hidden":false,"merged":[]}

{"sheet":"Üldjärjestus","index":1,"n_rows":183,"n_cols":9,"rows_kept":183,"cut":false,"hidden":false,"merged":[]}
[null,null,null,null,"Kool"]
[null,null,null,null,"**",null,null,"Valitud"]
["jrk","Kool",null,null,null,null,null,"jrk nr"]
[1,"Hugo Treffneri Gümnaasium",null,null,null,null,null,"Matemaatika",{"$f":"IFERROR(INDEX('Matemaatika (lai)'!C4:C140,MATCH(Valitud,'Matemaatika (lai)'!A4:A140,0)),\"\")","v":""}]
[2,"Tallinna Reaalkool",null,null,"Kool","jrk",null,"Eesti keel",{"$f":"_xlfn.XLOOKUP(Valitud,'Eesti keel'!A4:A152,'Eesti keel'!C4:C152,\"\")","v":""}]
[3,"Tallinna Prantsuse Lütseum",null,null,"Abja Gümnaasium",136]
[4,"Tallinna Inglise Kolledž",null,null,"Antsla Gümnaasium",129]
[5,"Gustav Adolfi Gümnaasium",null,null,"Aravete Keskkool",119]
[6,"Pärnu Sütevaka Humanitaargümnaasium",null,null,"Audentese Erakool",87]
[7,"Kuusalu Keskkool",null,null,"Audentese Spordigümnaasium",82]
[8,"Saaremaa Ühisgümnaasium",null,null,"Audentese Spordigümnaasiumi Otepää filiaal",115]
[9,"Vinni-Pajusti Gümnaasium",null,null,"August Kitzbergi nimeline Gümnaasium",85]
[10,"Loksa Gümnaasium",null,null,"Avinurme Gümnaasium",111]
[11,"Nõo Reaalgümnaasium",null,null,"EBS Gümnaasium",22]
[12,"Jõgevamaa Gümnaasium",null,null,"Ehte Humanitaargümnaasium",148]
[13,"Pärnu Koidula Gümnaasium",null,null,"Elva Gümnaasium",63]
[14,"Tartu Jaan Poska Gümnaasium",null,null,"Eurogümnaasium",133]
[15,"Tallinna 21. Kool",null,null,"G. Otsa nim Tallinna Muusikakool",165]
[16,"Läänemaa Ühisgümnaasium",null,null,"Gustav Adolfi Gümnaasium",5]
[17,"Vändra Gümnaasium",null,null,"H. Elleri nim Tartu Muusikakool",112]
[18,"Jakob Westholmi Gümnaasium",null,null,"Haabersti Vene Gümnaasium",178]
[19,"Tallinna Õismäe Gümnaasium",null,null,"Haapsalu Kutsehariduskeskus",172]
[20,"Saue Gümnaasium",null,null,"Haapsalu Täiskasvanute Gümnaasium",155]
[21,"Miina Härma Gümnaasium",null,null,"Hiiumaa Gümnaasium",48]
[22,"EBS Gümnaasium",null,null,"Hugo Treffneri Gümnaasium",1]
[23,"Toila Gümnaasium",null,null,"Häädemeeste Keskkool",53]
[24,"Kiili Gümnaasium",null,null,"Ida-Virumaa Kutsehariduskeskus",161]
[25,"Tallinna Kristiine Gümnaasium",null,null,"Iisaku Gümnaasium",121]
[26,"Kose Gümnaasium",null,null,"Jakob Westholmi Gümnaasium",18]
[27,"Vanalinna Hariduskolleegium",null,null,"Jõgeva Täiskasvanute Keskkool",153]
[28,"Viljandi Gümnaasium",null,null,"Jõgevamaa Gümnaasium",12]
[29,"Tallinna Kuristiku Gümnaasium",null,null,"Jõhvi Gümnaasium",75]
[30,"Rocca al Mare Kool",null,null,"Järva-Jaani Gümnaasium",159]
[31,"Kadrina Keskkool",null,null,"Järvamaa Kutsehariduskeskus",171]
[32,"Paldiski Ühisgümnaasium",null,null,"Jüri Gümnaasium",34]
[33,"Saku Gümnaasium",null,null,"Kadrina Keskkool",31]
[34,"Jüri Gümnaasium",null,null,"Kadrioru Saksa Gümnaasium",79]
[35,"Tartu Tamme Gümnaasium",null,null,"Kallavere Keskkool",81]
[36,"Noarootsi Gümnaasium",null,null,"Kehra Gümnaasium",120]
[37,"Rakvere Gümnaasium",null,null,"Keila Kool",57]
[38,"Tabasalu Ühisgümnaasium",null,null,"Kiili Gümnaasium",24]
[39,"Kohtla-Järve Järve Gümnaasium",null,null,"Kilingi-Nõmme Gümnaasium",95]
[40,"Võru Gümnaasium",null,null,"Kiviõli I Keskkool",90]
[41,"Viimsi Gümnaasium",null,null,"Koeru Keskkool",102]
[42,"Loo Keskkool",null,null,"Kohila Gümnaasium",73]
[43,"Tallinna Lilleküla Gümnaasium",null,null,"Kohtla-Järve Ahtme Gümnaasium",128]
[44,"Narva Eesti Gümnaasium",null,null,"Kohtla-Järve Järve Gümnaasium",39]
[45,"Tallinna Nõmme Gümnaasium",null,null,"Kohtla-Järve Järve Vene Gümnaasium",139]
[46,"Väike-Maarja Gümnaasium",null,null,"Kohtla-Järve Täiskasvanute Gümnaasium",130]
[47,"Narva Vanalinna Riigikool",null,null,"Kool 21. sajandil",177]
[48,"Hiiumaa Gümnaasium",null,null,"Kose Gümnaasium",26]
[49,"Kuressaare Gümnaasium",null,null,"Kullamaa Keskkool",116]
[50,"Lihula Gümnaasium",null,null,"Kunda Ühisgümnaasium",125]
[51,"Tallinna Järveotsa Gümnaasium",null,null,"Kuressaare Gümnaasium",49]
[52,"Valga Gümnaasium",null,null,"Kuressaare Täiskasvanute Gümnaasium",67]
[53,"Häädemeeste Keskkool",null,null,"Kuusalu Keskkool",7]
[54,"Tallinna Mustamäe Gümnaasium",null,null,"Lasnamäe Gümnaasium",166]
[55,"Tapa Gümnaasium",null,null,"Lasnamäe Vene Gümnaasium",156]
[56,"Põltsamaa Ühisgümnaasium",null,null,"Lihula Gümnaasium",50]
[57,"Keila Kool",null,null,"Loksa Gümnaasium",10]
[58,"Tallinna Laagna Gümnaasium",null,null,"Loo Keskkool",42]
[59,"Rapla Gümnaasium",null,null,"Luunja Keskkool",154]
[60,"Ülenurme Gümnaasium",null,null,"Lähte Ühisgümnaasium",92]
[61,"Paide Gümnaasium",null,null,"Läänemaa Ühisgümnaasium",16]
[62,"Otepää Gümnaasium",null,null,"Maardu Gümnaasium",96]
[63,"Elva Gümnaasium",null,null,"Miina Härma Gümnaasium",21]
[64,"Räpina Ühisgümnaasium",null,null,"Märjamaa Gümnaasium",72]
[65,"Tartu Waldorfgümnaasium",null,null,"Narva Eesti Gümnaasium",44]
[66,"Tallinna 32. Keskkool",null,null,"Narva Keeltelütseum",91]
[67,"Kuressaare Täiskasvanute Gümnaasium",null,null,"Narva Kesklinna Gümnaasium",106]
[68,"Tallinna Ühisgümnaasium",null,null,"Narva Kreenholmi Gümnaasium",123]
[69,"Pärnu Ühisgümnaasium",null,null,"Narva Pähklimäe Gümnaasium",124]
[70,"Tallinna Tehnikagümnaasium",null,null,"Narva Soldino Gümnaasium",160]
[71,"Rakvere Reaalgümnaasium",null,null,"Narva Täiskasvanute Kool",169]
[72,"Märjamaa Gümnaasium",null,null,"Narva Vanalinna Riigikool",47]
[73,"Kohila Gümnaasium",null,null,"Noarootsi Gümnaasium",36]
[74,"Tamsalu Gümnaasium",null,null,"Nõo Reaalgümnaasium",11]
[75,"Jõhvi Gümnaasium",null,null,"Olustvere Teenindus- ja Maamajanduskool",127]
[76,"Tõrva Gümnaasium",null,null,"Orissaare Gümnaasium",117]
[77,"Oskar Lutsu Palamuse Gümnaasium",null,null,"Oskar Lutsu Palamuse Gümnaasium",77]
[78,"Tartu Kristjan Jaak Petersoni Gümnaasium",null,null,"Otepää Gümnaasium",62]
[79,"Kadrioru Saksa Gümnaasium",null,null,"Paide Gümnaasium",61]
[80,"Põlva Gümnaasium",null,null,"Paide Täiskasvanute Keskkool",150]
[81,"Kallavere Keskkool",null,null,"Paldiski Ühisgümnaasium",32]
[82,"Audentese Spordigümnaasium",null,null,"Parksepa Keskkool",83]
[83,"Parksepa Keskkool",null,null,"Peipsi Gümnaasium",157]
[84,"Tartu Täiskasvanute Gümnaasium",null,null,"Pelgulinna Gümnaasium",103]
[85,"August Kitzbergi nimeline Gümnaasium",null,null,"Pirita Majandusgümnaasium",97]
[86,"Suure-Jaani Gümnaasium",null,null,"Puka Keskkool",163]
[87,"Audentese Erakool",null,null,"Põltsamaa Ühisgümnaasium",56]
[88,"Tallinna Saksa Gümnaasium",null,null,"Põlva Gümnaasium",80]
[89,"Tallinna Arte Gümnaasium",null,null,"Pärnu Koidula Gümnaasium",13]
[90,"Kiviõli I Keskkool",null,null,"Pärnu Sütevaka Humanitaargümnaasium",6]
[91,"Narva Keeltelütseum",null,null,"Pärnu Täiskasvanute Gümnaasium",114]
[92,"Lähte Ühisgümnaasium",null,null,"Pärnu Ühisgümnaasium",69]
[93,"Tallinna Täiskasvanute Gümnaasium",null,null,"Pärnumaa Kutsehariduskeskus",173]
[94,"Türi Ühisgümnaasium",null,null,"Rakvere Ametikool",175]
[95,"Kilingi-Nõmme Gümnaasium",null,null,"Rakvere Eragümnaasium",135]
[96,"Maardu Gümnaasium",null,null,"Rakvere Gümnaasium",37]
[97,"Pirita Majandusgümnaasium",null,null,"Rakvere Reaalgümnaasium",71]
[98,"Tallinna Kesklinna Vene Gümnaasium",null,null,"Rakvere Täiskasvanute Gümnaasium",134]
[99,"Tallinna Juudi Kool",null,null,"Rapla Gümnaasium",59]
[100,"Tallinna Kunstigümnaasium",null,null,"Rapla Täiskasvanute Gümnaasium",140]
[101,"Sakala Eragümnaasium",null,null,"Rocca al Mare Kool",30]
[102,"Koeru Keskkool",null,null,"Rõngu Keskkool",113]
[103,"Pelgulinna Gümnaasium",null,null,"Räpina Ühisgümnaasium",64]
[104,"Tallinna Vanalinna Täiskasvanute Gümnaasium",null,null,"Saaremaa Ühisgümnaasium",8]
[105,"Tallinna Linnamäe Vene Lütseum",null,null,"Sakala Eragümnaasium",101]
[106,"Narva Kesklinna Gümnaasium",null,null,"Saku Gümnaasium",33]
[107,"Viljandi Täiskasvanute Gümnaasium",null,null,"Saue Gümnaasium",20]
[108,"Tallinna Tõnismäe Reaalkool",null,null,"Sillamäe Gümnaasium",144]
[109,"Tallinna Pae Gümnaasium",null,null,"Sindi Gümnaasium",158]
[110,"Tallinna Muusikakeskkool",null,null,"Suure-Jaani Gümnaasium",86]
[111,"Avinurme Gümnaasium",null,null,"Tabasalu Ühisgümnaasium",38]
[112,"H. Elleri nim Tartu Muusikakool",null,null,"Tallinna 21. Kool",15]
[113,"Rõngu Keskkool",null,null,"Tallinna 32. Keskkool",66]
[114,"Pärnu Täiskasvanute Gümnaasium",null,null,"Tallinna 53. Keskkool",118]
[115,"Audentese Spordigümnaasiumi Otepää filiaal",null,null,"Tallinna Arte Gümnaasium",89]
[116,"Kullamaa Keskkool",null,null,"Tallinna Ehituskool",174]
[117,"Orissaare Gümnaasium",null,null,"Tallinna Humanitaargümnaasium",143]
[118,"Tallinna 53. Keskkool",null,null,"Tallinna Inglise Kolledž",4]
[119,"Aravete Keskkool",null,null,"Tallinna Juudi Kool",99]
[120,"Kehra Gümnaasium",null,null,"Tallinna Järveotsa Gümnaasium",51]
[121,"Iisaku Gümnaasium",null,null,"Tallinna Kesklinna Vene Gümnaasium",98]
[122,"Tallinna Polütehnikum",null,null,"Tallinna Kristiine Gümnaasium",25]
[123,"Narva Kreenholmi Gümnaasium",null,null,"Tallinna Kunstigümnaasium",100]
[124,"Narva Pähklimäe Gümnaasium",null,null,"Tallinna Kuristiku Gümnaasium",29]
[125,"Kunda Ühisgümnaasium",null,null,"Tallinna Laagna Gümnaasium",58]
[126,"Tallinna Pääsküla Kool",null,null,"Tallinna Lilleküla Gümnaasium",43]
[127,"Olustvere Teenindus- ja Maamajanduskool",null,null,"Tallinna Linnamäe Vene Lütseum",105]
[128,"Kohtla-Järve Ahtme Gümnaasium",null,null,"Tallinna Läänemere Gümnaasium",131]
[129,"Antsla Gümnaasium",null,null,"Tallinna Mustamäe Gümnaasium",54]
[130,"Kohtla-Järve Täiskasvanute Gümnaasium",null,null,"Tallinna Mustamäe Humanitaargümnaasium",147]
[131,"Tallinna Läänemere Gümnaasium",null,null,"Tallinna Mustamäe Reaalgümnaasium",176]
[132,"Vastseliina Gümnaasium",null,null,"Tallinna Mustjõe Gümnaasium",151]
[133,"Eurogümnaasium",null,null,"Tallinna Muusikakeskkool",110]
[134,"Rakvere Täiskasvanute Gümnaasium",null,null,"Tallinna Nõmme Gümnaasium",45]
[135,"Rakvere Eragümnaasium",null,null,"Tallinna Pae Gümnaasium",109]
[136,"Abja Gümnaasium",null,null,"Tallinna Polütehnikum",122]
[137,"Tallinna Õismäe Vene Lütseum",null,null,"Tallinna Prantsuse Lütseum",3]
[138,"Tartu Herbert Masingu Kool",null,null,"Tallinna Pääsküla Kool",126]
[139,"Kohtla-Järve Järve Vene Gümnaasium",null,null,"Tallinna Reaalkool",2]
[140,"Rapla Täiskasvanute Gümnaasium",null,null,"Tallinna Saksa Gümnaasium",88]
[141,"Võnnu Keskkool",null,null,"Tallinna Teeninduskool",145]
[142,"Tallinna Tööstushariduskeskus",null,null,"Tallinna Tehnikagümnaasium",70]
[143,"Tallinna Humanitaargümnaasium",null,null,"Tallinna Tõnismäe Reaalkool",108]
[144,"Sillamäe Gümnaasium",null,null,"Tallinna Täiskasvanute Gümnaasium",93]
[145,"Tallinna Teeninduskool",null,null,"Tallinna Tööstushariduskeskus",142]
[146,"Tartu Kunstikool",null,null,"Tallinna Vaba Waldorfkool",164]
[147,"Tallinna Mustamäe Humanitaargümnaasium",null,null,"Tallinna Vanalinna Täiskasvanute Gümnaasium",104]
[148,"Ehte Humanitaargümnaasium",null,null,"Tallinna Õismäe Gümnaasium",19]
[149,"Viljandi Vaba Waldorfkool",null,null,"Tallinna Õismäe Vene Lütseum",137]
[150,"Paide Täiskasvanute Keskkool",null,null,"Tallinna Ühisgümnaasium",68]
[151,"Tallinna Mustjõe Gümnaasium",null,null,"Tamsalu Gümnaasium",74]
[152,"Tartu Kutsehariduskeskus",null,null,"Tapa Gümnaasium",55]
[153,"Jõgeva Täiskasvanute Keskkool",null,null,"Tartu Annelinna Gümnaasium",162]
[154,"Luunja Keskkool",null,null,"Tartu Herbert Masingu Kool",138]
[155,"Haapsalu Täiskasvanute Gümnaasium",null,null,"Tartu Jaan Poska Gümnaasium",14]
[156,"Lasnamäe Vene Gümnaasium",null,null,"Tartu Kristjan Jaak Petersoni Gümnaasium",78]
[157,"Peipsi Gümnaasium",null,null,"Tartu Kunstikool",146]
[158,"Sindi Gümnaasium",null,null,"Tartu Kutsehariduskeskus",152]
[159,"Järva-Jaani Gümnaasium",null,null,"Tartu Tamme Gümnaasium",35]
[160,"Narva Soldino Gümnaasium",null,null,"Tartu Täiskasvanute Gümnaasium",84]
[161,"Ida-Virumaa Kutsehariduskeskus",null,null,"Tartu Waldorfgümnaasium",65]
[162,"Tartu Annelinna Gümnaasium",null,null,"Toila Gümnaasium",23]
[163,"Puka Keskkool",null,null,"Tõrva Gümnaasium",76]
[164,"Tallinna Vaba Waldorfkool",null,null,"Türi Ühisgümnaasium",94]
[165,"G. Otsa nim Tallinna Muusikakool",null,null,"Valga Gümnaasium",52]
[166,"Lasnamäe Gümnaasium",null,null,"Valga Kaugõppegümnaasium",170]
[167,"Võru Täiskasvanute Gümnaasium",null,null,"Vanalinna Hariduskolleegium",27]
[168,"Viljandi Kutseõppekeskus",null,null,"Vastseliina Gümnaasium",132]
[169,"Narva Täiskasvanute Kool",null,null,"Viimsi Gümnaasium",41]
[170,"Valga Kaugõppegümnaasium",null,null,"Viljandi Gümnaasium",28]
[171,"Järvamaa Kutsehariduskeskus",null,null,"Viljandi Kutseõppekeskus",168]
[172,"Haapsalu Kutsehariduskeskus",null,null,"Viljandi Täiskasvanute Gümnaasium",107]
[173,"Pärnumaa Kutsehariduskeskus",null,null,"Viljandi Vaba Waldorfkool",149]
[174,"Tallinna Ehituskool",null,null,"Vinni-Pajusti Gümnaasium",9]
[175,"Rakvere Ametikool",null,null,"Võnnu Keskkool",141]
[176,"Tallinna Mustamäe Reaalgümnaasium",null,null,"Võru Gümnaasium",40]
[177,"Kool 21. sajandil",null,null,"Võru Täiskasvanute Gümnaasium",167]
[178,"Haabersti Vene Gümnaasium",null,null,"Väike-Maarja Gümnaasium",46]
[null,null,null,null,"Vändra Gümnaasium",17]
[null,null,null,null,"Ülenurme Gümnaasium",60]

{"sheet":"Matemaatika (lai)","index":2,"n_rows":140,"n_cols":5,"rows_kept":140,"cut":false,"hidden":false,"merged":[]}
[]
[]
["Õppeasutus","Sooritajaid","Keskmine (%)","Mediaan","St hälve"]
["Audentese Erakool",6,35.299999999999997,28.5,27.5]
["Audentese Spordigümnaasium",41,31.1,24,22.3]
["Audentese Spordigümnaasiumi Otepää filiaal",12,16.600000000000001,16,9.1]
["August Kitzbergi nimeline Gümnaasium",9,30.9,31,18.3]
["EBS Gümnaasium",8,63,61,10.199999999999999]
["Ehte Humanitaargümnaasium",10,49.1,47,21.8]
["Elva Gümnaasium",17,43.2,37,16.399999999999999]
["Eurogümnaasium",5,52.4,58,23.1]
["Gustav Adolfi Gümnaasium",112,77.099999999999994,81,17.899999999999999]
["Haabersti Vene Gümnaasium",19,22.8,15,19.600000000000001]
["Hiiumaa Gümnaasium",30,46.1,47.5,22.6]
["Hugo Treffneri Gümnaasium",179,82.5,90,17.3]
["Häädemeeste Keskkool",7,41.3,25,30.5]
["Jakob Westholmi Gümnaasium",41,62.9,61,16.399999999999999]
["Jõgevamaa Gümnaasium",35,63.9,68,21.1]
["Jõhvi Gümnaasium",82,42.6,40,25.8]
["Jüri Gümnaasium",30,57.9,55.5,23.1]
["Kadrina Keskkool",17,56.8,57,21]
["Kadrioru Saksa Gümnaasium",48,31.5,28.5,21.4]
["Kallavere Keskkool",5,39.799999999999997,41,17.8]
["Keila Kool",58,41.9,38,23.2]
["Kiili Gümnaasium",7,62.6,62,24.4]
["Kilingi-Nõmme Gümnaasium",13,23.5,12,27]
["Kiviõli I Keskkool",13,30.2,25,22.9]
["Kohila Gümnaasium",22,41.2,37,21.3]
["Kohtla-Järve Ahtme Gümnaasium",18,54.1,56,22.2]
["Kohtla-Järve Järve Gümnaasium",19,54.6,61,23.8]
["Kohtla-Järve Järve Vene Gümnaasium",33,51.3,57,31.6]
["Kool 21. sajandil",6,27.2,23.5,24.9]
["Kose Gümnaasium",11,61,59,19.7]
["Kuressaare Gümnaasium",29,46.1,39,21.8]
["Kuressaare Täiskasvanute Gümnaasium",5,41.2,34,28.7]
["Kuusalu Keskkool",13,76.8,84,15.2]
["Lasnamäe Gümnaasium",26,42.9,44,20.399999999999999]
["Lasnamäe Vene Gümnaasium",10,47.1,43.5,22.9]
["Lihula Gümnaasium",13,46,47,24.5]
["Loksa Gümnaasium",10,66.8,65,17.7]
["Loo Keskkool",9,54.6,62,22.7]
["Lähte Ühisgümnaasium",26,26,22,18.899999999999999]
["Läänemaa Ühisgümnaasium",50,71.599999999999994,72,18.899999999999999]
["Maardu Gümnaasium",16,42.6,31,28.1]
["Miina Härma Gümnaasium",70,60,58,26.4]
["Märjamaa Gümnaasium",9,39.700000000000003,43,20.100000000000001]
["Määramata",190,40.200000000000003,36.5,26.5]
["Narva Eesti Gümnaasium",5,65.400000000000006,61,31.3]
["Narva Keeltelütseum",23,86.5,90,12.8]
["Narva Kesklinna Gümnaasium",31,69.2,74,18.899999999999999]
["Narva Kreenholmi Gümnaasium",16,58.4,59,16.7]
["Narva Pähklimäe Gümnaasium",23,58.4,64,20]
["Narva Soldino Gümnaasium",21,46.8,50,25.5]
["Narva Täiskasvanute Kool",5,40.6,39,17.399999999999999]
["Narva Vanalinna Riigikool",8,65.400000000000006,73.5,23.3]
["Noarootsi Gümnaasium",22,52.5,48,19.5]
["Nõo Reaalgümnaasium",91,66.400000000000006,66,19]
["Oskar Lutsu Palamuse Gümnaasium",5,34,34,13.8]
["Otepää Gümnaasium",21,37.4,40,18]
["Paide Gümnaasium",36,38.1,32.5,23]
["Paldiski Ühisgümnaasium",6,68.7,85.5,34.5]
["Parksepa Keskkool",9,34.1,32,21.7]
["Peipsi Gümnaasium",7,46.9,47,13.5]
["Pelgulinna Gümnaasium",32,16.399999999999999,8,18.100000000000001]
["Pirita Majandusgümnaasium",37,18.8,15,13.6]
["Põltsamaa Ühisgümnaasium",27,39.6,35,22.8]
["Põlva Gümnaasium",58,35.9,32.5,19.100000000000001]
["Pärnu Koidula Gümnaasium",141,66.2,66,21.9]
["Pärnu Sütevaka Humanitaargümnaasium",19,68.400000000000006,74,17.3]
["Pärnu Täiskasvanute Gümnaasium",15,8.9,8,4.0999999999999996]
["Pärnu Ühisgümnaasium",22,39,34.5,23.8]
["Rakvere Gümnaasium",35,50.4,48,24.2]
["Rakvere Reaalgümnaasium",50,37.700000000000003,35,24.5]
["Rapla Gümnaasium",66,36.6,29.5,23.1]
["Rocca al Mare Kool",57,52.6,56,24.4]
["Räpina Ühisgümnaasium",7,41,40,18.600000000000001]
["Saaremaa Ühisgümnaasium",40,71,72,20.7]
["Sakala Eragümnaasium",9,73.099999999999994,73,15.6]
["Saku Gümnaasium",46,57.9,62.5,22.3]
["Saue Gümnaasium",27,63.3,62,22.2]
["Sillamäe Gümnaasium",26,50.1,55,30.6]
["Suure-Jaani Gümnaasium",8,32.799999999999997,32.5,10.7]
["Tabasalu Ühisgümnaasium",20,50.6,49.5,21.1]
["Tallinna 21. Kool",82,63,64,23.4]
["Tallinna 32. Keskkool",95,34.5,29,20.8]
["Tallinna 53. Keskkool",23,61.4,66,28]
["Tallinna Arte Gümnaasium",22,34.4,31,20.7]
["Tallinna Humanitaargümnaasium",33,50.8,53,26.8]
["Tallinna Inglise Kolledž",10,86.7,90,10.9]
["Tallinna Juudi Kool",10,75,73.5,12]
["Tallinna Järveotsa Gümnaasium",18,45.7,43,16]
["Tallinna Kesklinna Vene Gümnaasium",14,75.400000000000006,76.5,12.4]
["Tallinna Kristiine Gümnaasium",13,66.099999999999994,69,20]
["Tallinna Kunstigümnaasium",10,21.9,16,16.8]
["Tallinna Kuristiku Gümnaasium",16,67.099999999999994,62.5,19.100000000000001]
["Tallinna Laagna Gümnaasium",9,49.6,44,24.6]
["Tallinna Lilleküla Gümnaasium",38,53.8,53,19.399999999999999]
["Tallinna Linnamäe Vene Lütseum",38,69.900000000000006,75,21.5]
["Tallinna Läänemere Gümnaasium",18,53.2,53.5,21]
["Tallinna Mustamäe Gümnaasium",34,43.9,47,21]
["Tallinna Mustamäe Humanitaargümnaasium",14,49.5,52.5,24.6]
["Tallinna Mustamäe Reaalgümnaasium",34,27.4,24.5,24.1]
["Tallinna Mustjõe Gümnaasium",18,48.3,44.5,24.7]
["Tallinna Nõmme Gümnaasium",34,51.9,53.5,20.9]
["Tallinna Pae Gümnaasium",12,68.8,72.5,15.5]
["Tallinna Polütehnikum",49,12,7,12.6]
["Tallinna Prantsuse Lütseum",35,76,80,14.6]
["Tallinna Pääsküla Kool",11,11.3,7,15.8]
["Tallinna Reaalkool",104,83.3,87,14.5]
["Tallinna Saksa Gümnaasium",19,25.2,19,19.2]
["Tallinna Tehnikagümnaasium",48,38.5,34.5,28.3]
["Tallinna Tõnismäe Reaalkool",36,69,78,24.3]
["Tallinna Täiskasvanute Gümnaasium",17,36.5,26,29.6]
["Tallinna Tööstushariduskeskus",5,9.8000000000000007,10,8]
["Tallinna Vanalinna Täiskasvanute Gümnaasium",34,23.5,18,19.2]
["Tallinna Õismäe Gümnaasium",21,68.599999999999994,68,18.600000000000001]
["Tallinna Õismäe Vene Lütseum",33,51.9,52,27.3]
["Tallinna Ühisgümnaasium",35,41.8,39,20.9]
["Tamsalu Gümnaasium",15,38.299999999999997,33,16.3]
["Tapa Gümnaasium",12,44.6,43,16.399999999999999]
["Tartu Annelinna Gümnaasium",43,45.2,38,27.3]
["Tartu Jaan Poska Gümnaasium",131,59.9,60,18.7]
["Tartu Kristjan Jaak Petersoni Gümnaasium",42,32.5,33,17.3]
["Tartu Kutsehariduskeskus",5,5.4,2,5.5]
["Tartu Tamme Gümnaasium",124,50,48,23.8]
["Tartu Täiskasvanute Gümnaasium",13,30.9,25,18.600000000000001]
["Tartu Waldorfgümnaasium",5,37.4,33,16.3]
["Toila Gümnaasium",7,65.099999999999994,73,27.5]
["Tõrva Gümnaasium",24,36.200000000000003,25.5,24.6]
["Türi Ühisgümnaasium",32,22.7,19,17.5]
["Valga Gümnaasium",19,48.3,35,30.1]
["Vanalinna Hariduskolleegium",72,47.7,48,28.6]
["Viimsi Gümnaasium",54,46.5,43.5,24]
["Viljandi Gümnaasium",159,54.6,51,26.4]
["Viljandi Täiskasvanute Gümnaasium",5,23.6,14,19.100000000000001]
["Vinni-Pajusti Gümnaasium",12,74.7,83,17.600000000000001]
["Võru Gümnaasium",85,48.8,46,21.2]
["Väike-Maarja Gümnaasium",11,41.5,36,20.399999999999999]
["Vändra Gümnaasium",7,72.400000000000006,79,19.5]
["Ülenurme Gümnaasium",11,42.8,44,18.100000000000001]

{"sheet":"Eesti keel","index":3,"n_rows":152,"n_cols":5,"rows_kept":152,"cut":false,"hidden":false,"merged":[]}
[]
[]
["Õppeasutus","Sooritajaid","Keskmine (%)","Mediaan","St hälve"]
["Abja Gümnaasium",31,52.2,54,10.4]
["Antsla Gümnaasium",13,53.4,49,17.600000000000001]
["Aravete Keskkool",5,60.8,63,12.3]
["Audentese Erakool",22,53.1,54,16.600000000000001]
["Audentese Spordigümnaasium",53,59,60,14.4]
["Audentese Spordigümnaasiumi Otepää filiaal",15,46.3,47,15.6]
["August Kitzbergi nimeline Gümnaasium",22,58.2,55.5,13.7]
["Avinurme Gümnaasium",12,64,72,16.2]
["EBS Gümnaasium",27,64.7,62,14.7]
["Elva Gümnaasium",49,58.3,59,15.7]
["G. Otsa nim Tallinna Muusikakool",5,44,40,19.2]
["Gustav Adolfi Gümnaasium",140,79,80,10.3]
["H. Elleri nim Tartu Muusikakool",7,63.9,67,21.3]
["Haapsalu Kutsehariduskeskus",23,37.200000000000003,38,13.2]
["Haapsalu Täiskasvanute Gümnaasium",9,47.1,41,17.600000000000001]
["Hiiumaa Gümnaasium",47,61.4,61,15.8]
["Hugo Treffneri Gümnaasium",181,83.5,84,9.1]
["Häädemeeste Keskkool",11,63.4,63,14.3]
["Ida-Virumaa Kutsehariduskeskus",6,46.5,46,15.6]
["Iisaku Gümnaasium",5,60,62,12.6]
["Jakob Westholmi Gümnaasium",66,68.5,69,13]
["Jõgeva Täiskasvanute Keskkool",29,47.7,47,18.399999999999999]
["Jõgevamaa Gümnaasium",61,74.900000000000006,77,11.1]
["Jõhvi Gümnaasium",48,55.1,52,14.7]
["Järva-Jaani Gümnaasium",8,46.8,43.5,20.100000000000001]
["Järvamaa Kutsehariduskeskus",10,39.1,39,13.5]
["Jüri Gümnaasium",64,61.6,63,15.3]
["Kadrina Keskkool",35,64.400000000000006,64,11.4]
["Kadrioru Saksa Gümnaasium",60,63.5,64,14.1]
["Kallavere Keskkool",9,53,56,13.6]
["Kehra Gümnaasium",5,60.6,64,11.7]
["Keila Kool",77,61.8,61,15.6]
["Kiili Gümnaasium",22,63,64.5,13.3]
["Kilingi-Nõmme Gümnaasium",23,53.8,55,19.100000000000001]
["Kiviõli I Keskkool",15,56.3,56,19.100000000000001]
["Koeru Keskkool",8,71.5,70.5,13.7]
["Kohila Gümnaasium",46,57,54.5,14.7]
["Kohtla-Järve Järve Gümnaasium",28,60.8,63,14.7]
["Kohtla-Järve Täiskasvanute Gümnaasium",6,53.3,47.5,18.8]
["Kose Gümnaasium",32,62.8,64,16]
["Kullamaa Keskkool",11,62.8,61,18.100000000000001]
["Kunda Ühisgümnaasium",7,56.7,59,16]
["Kuressaare Gümnaasium",76,61.4,61,13.9]
["Kuressaare Täiskasvanute Gümnaasium",47,59.8,60,13.7]
["Kuusalu Keskkool",25,72.2,75,14.3]
["Lihula Gümnaasium",23,61.4,66,17.2]
["Loksa Gümnaasium",6,76.2,81.5,17.8]
["Loo Keskkool",24,57.3,59.5,16.100000000000001]
["Luunja Keskkool",18,47.1,44.5,14.6]
["Lähte Ühisgümnaasium",42,58.5,58.5,15.5]
["Läänemaa Ühisgümnaasium",88,61.5,63.5,15.8]
["Maardu Gümnaasium",10,34,32.5,15.2]
["Miina Härma Gümnaasium",93,69.3,69,13]
["Märjamaa Gümnaasium",19,58.5,57,11.1]
["Määramata",217,50.9,50,18]
["Narva Eesti Gümnaasium",7,45.9,47,13.5]
["Narva Vanalinna Riigikool",18,42.1,39,14.8]
["Noarootsi Gümnaasium",48,63.5,64,13.8]
["Nõo Reaalgümnaasium",90,72.7,74,11.8]
["Olustvere Teenindus- ja Maamajanduskool",13,55,54,22]
["Orissaare Gümnaasium",12,62.1,62.5,12.4]
["Oskar Lutsu Palamuse Gümnaasium",11,62.3,62,16.100000000000001]
["Otepää Gümnaasium",25,64.400000000000006,67,11.6]
["Paide Gümnaasium",61,64.3,64,11.9]
["Paide Täiskasvanute Keskkool",18,48.3,45,19.2]
["Paldiski Ühisgümnaasium",13,52.1,51,14.8]
["Parksepa Keskkool",36,55.8,53,13.8]
["Pelgulinna Gümnaasium",40,55,54,15.1]
["Pirita Majandusgümnaasium",53,56.8,56,14.2]
["Puka Keskkool",5,44.2,40,10.7]
["Põltsamaa Ühisgümnaasium",53,64.099999999999994,66,17.399999999999999]
["Põlva Gümnaasium",78,58.5,60,14.9]
["Pärnu Koidula Gümnaasium",156,69.8,71,14.1]
["Pärnu Sütevaka Humanitaargümnaasium",58,83,84.5,10]
["Pärnu Täiskasvanute Gümnaasium",64,54,55,15.7]
["Pärnu Ühisgümnaasium",121,60.6,60,12]
["Pärnumaa Kutsehariduskeskus",16,37.1,32,14.1]
["Rakvere Ametikool",15,34.1,34,13.6]
["Rakvere Eragümnaasium",35,52.2,53,12.7]
["Rakvere Gümnaasium",57,65.099999999999994,65,15.6]
["Rakvere Reaalgümnaasium",74,61,60.5,15.1]
["Rakvere Täiskasvanute Gümnaasium",27,52.3,52,11.9]
["Rapla Gümnaasium",76,66.8,67.5,12.2]
["Rapla Täiskasvanute Gümnaasium",33,51.1,51,16.100000000000001]
["Rocca al Mare Kool",71,69.099999999999994,69,14.9]
["Rõngu Keskkool",13,63.6,66,16.600000000000001]
["Räpina Ühisgümnaasium",14,60.2,61.5,12.1]
["Saaremaa Ühisgümnaasium",57,74.900000000000006,77,9.5]
["Saku Gümnaasium",62,62.5,61.5,12]
["Saue Gümnaasium",35,66.900000000000006,68,9.5]
["Sindi Gümnaasium",13,46.8,49,12.9]
["Suure-Jaani Gümnaasium",21,56.1,52,15]
["Tabasalu Ühisgümnaasium",29,64.8,67,15.5]
["Tallinna 21. Kool",106,70.7,72,12.2]
["Tallinna 32. Keskkool",127,66.599999999999994,68,13.5]
["Tallinna Arte Gümnaasium",50,52.6,52.5,11.5]
["Tallinna Ehituskool",11,34.799999999999997,35,15.8]
["Tallinna Inglise Kolledž",23,71.3,73,9.1999999999999993]
["Tallinna Järveotsa Gümnaasium",31,61.6,63,16]
["Tallinna Kristiine Gümnaasium",27,58.7,56,17.100000000000001]
["Tallinna Kunstigümnaasium",34,51.4,53.5,16.399999999999999]
["Tallinna Kuristiku Gümnaasium",32,56.2,54,13.3]
["Tallinna Laagna Gümnaasium",26,53.8,54.5,11.5]
["Tallinna Lilleküla Gümnaasium",48,57.8,58.5,12.4]
["Tallinna Mustamäe Gümnaasium",46,60.2,60.5,14.3]
["Tallinna Muusikakeskkool",25,64.8,71,19]
["Tallinna Nõmme Gümnaasium",70,58.7,60.5,16.7]
["Tallinna Polütehnikum",47,47.3,47,16.5]
["Tallinna Prantsuse Lütseum",57,82.1,83,10.9]
["Tallinna Pääsküla Kool",22,44.7,45.5,12.3]
["Tallinna Reaalkool",104,80.5,81,10.4]
["Tallinna Saksa Gümnaasium",73,63.1,65,16.100000000000001]
["Tallinna Teeninduskool",8,49.9,52.5,14.9]
["Tallinna Tehnikagümnaasium",54,60.3,61.5,14.5]
["Tallinna Täiskasvanute Gümnaasium",105,46.1,45,16.7]
["Tallinna Tööstushariduskeskus",29,41,41,11.4]
["Tallinna Vaba Waldorfkool",14,44.1,39,14.8]
["Tallinna Vanalinna Täiskasvanute Gümnaasium",176,47.8,46,16.899999999999999]
["Tallinna Õismäe Gümnaasium",38,61.8,63,15.6]
["Tallinna Ühisgümnaasium",75,58.9,59,14.1]
["Tamsalu Gümnaasium",19,59.8,61,14.2]
["Tapa Gümnaasium",32,59.1,59,15.5]
["Tartu Herbert Masingu Kool",12,51.8,52.5,13.2]
["Tartu Jaan Poska Gümnaasium",181,74.2,75,11.7]
["Tartu Kristjan Jaak Petersoni Gümnaasium",186,62.9,62.5,12.3]
["Tartu Kunstikool",18,49.5,43.5,17.8]
["Tartu Kutsehariduskeskus",54,42.4,42.5,13.8]
["Tartu Tamme Gümnaasium",141,67.7,68,12.9]
["Tartu Täiskasvanute Gümnaasium",77,58.5,59,15.4]
["Tartu Waldorfgümnaasium",16,63.8,68.5,16.7]
["Toila Gümnaasium",13,60.5,61,17.600000000000001]
["Tõrva Gümnaasium",24,60.2,60.5,17]
["Türi Ühisgümnaasium",39,55.4,56,12.3]
["Valga Gümnaasium",41,57.6,55,20.7]
["Valga Kaugõppegümnaasium",9,39.700000000000003,40,10.199999999999999]
["Vanalinna Hariduskolleegium",85,75.7,77,14.6]
["Vastseliina Gümnaasium",8,52.6,58.5,23.4]
["Viimsi Gümnaasium",70,65.599999999999994,66,13.7]
["Viljandi Gümnaasium",178,68.7,70,14.5]
["Viljandi Kutseõppekeskus",18,41.9,39.5,11.2]
["Viljandi Täiskasvanute Gümnaasium",35,45.5,49,16.5]
["Viljandi Vaba Waldorfkool",9,48.7,44,21.8]
["Vinni-Pajusti Gümnaasium",24,69.599999999999994,70.5,12.7]
["Võnnu Keskkool",10,50.9,52.5,12.4]
["Võru Gümnaasium",88,66.400000000000006,66.5,10.3]
["Võru Täiskasvanute Gümnaasium",38,42.7,44,14.7]
["Väike-Maarja Gümnaasium",18,66.7,66.5,10.6]
["Vändra Gümnaasium",25,60.2,60,17]
["Ülenurme Gümnaasium",47,59.9,56,14.8]

{"sheet":"GDP","index":5,"n_rows":55,"n_cols":27,"rows_kept":55,"cut":false,"hidden":false,"merged":[]}
["GDP and main components (output, expenditure and income) [nama_10_gdp]"]
[null,null,null,null,null,null,null,null,null,null,null,null,"Riik","Country"]
["Last update","2020-04-16T20:16:36",null,null,null,null,null,null,null,null,null,null,"Austria","Austria"]
["Extracted on","2020-04-17T10:28:28.512",null,null,null,null,null,null,null,null,null,null,"Belgia","Belgium",null,null,"Spain",{"$f":"INDEX(GDP,MATCH($Q4,riigid,0),MATCH(R$10,aastad,0))","v":1072709},{"$f":"INDEX(GDP,MATCH($Q4,riigid,0),MATCH(S$10,aastad,0))","v":1063763},{"$f":"INDEX(GDP,MATCH($Q4,riigid,0),MATCH(T$10,aastad,0))","v":1031099},{"$f":"INDEX(GDP,MATCH($Q4,riigid,0),MATCH(U$10,aastad,0))","v":1020348},{"$f":"INDEX(GDP,MATCH($Q4,riigid,0),MATCH(V$10,aastad,0))","v":1032158},{"$f":"INDEX(GDP,MATCH($Q4,riigid,0),MATCH(W$10,aastad,0))","v":1077590},{"$f":"INDEX(GDP,MATCH($Q4,riigid,0),MATCH(X$10,aastad,0))","v":1113840},{"$f":"INDEX(GDP,MATCH($Q4,riigid,0),MATCH(Y$10,aastad,0))","v":1161878},{"$f":"INDEX(GDP,MATCH($Q4,riigid,0),MATCH(Z$10,aastad,0))","v":1202193},{"$f":"INDEX(GDP,MATCH($Q4,riigid,0),MATCH(AA$10,aastad,0))","v":1245331}]
["Source of data","Eurostat",null,null,null,null,null,null,null,null,null,null,"Eesti","Estonia"]
[null,null,null,null,null,null,null,null,null,null,null,null,"Hispaania","Spain"]
["UNIT","Current prices, million euro",null,null,null,null,null,null,null,null,null,null,"Iirimaa","Ireland"]
["NA_ITEM","Gross domestic product at market prices",null,null,null,null,null,null,null,null,null,null,"Itaalia","Italy",null,null,null,{"$f":"_xlfn.FORMULATEXT(R11)","v":"=INDEX(GDP;MATCH($Q11;riigid;0);MATCH(R$10;aastad;0))"}]
[null,null,null,null,null,null,null,null,null,null,null,null,"Kreeka","Greece"]
["GEO/TIME","2010","2011","2012","2013","2014","2015","2016","2017","2018","2019",null,"Küpros","Cyprus",null,null,"Riik","2010","2011","2012","2013","2014","2015","2016","2017","2018","2019"]
["European Union - 27 countries (from 2020)",10978265,11322768.5,11390022.199999999,11516664.4,11781665,12213010.9,12550459.6,13046775.699999999,13484821.800000001,13918144.4,null,"Leedu","Lithuania",null,null,"Spain",{"$f":"INDEX(GDP,MATCH($Q11,riigid,0),MATCH(R$10,aastad,0))","v":1072709},{"$f":"INDEX(GDP,MATCH($Q11,riigid,0),MATCH(S$10,aastad,0))","v":1063763},{"$f":"INDEX(GDP,MATCH($Q11,riigid,0),MATCH(T$10,aastad,0))","v":1031099},{"$f":"INDEX(GDP,MATCH($Q11,riigid,0),MATCH(U$10,aastad,0))","v":1020348},{"$f":"INDEX(GDP,MATCH($Q11,riigid,0),MATCH(V$10,aastad,0))","v":1032158},{"$f":"INDEX(GDP,MATCH($Q11,riigid,0),MATCH(W$10,aastad,0))","v":1077590},{"$f":"INDEX(GDP,MATCH($Q11,riigid,0),MATCH(X$10,aastad,0))","v":1113840},{"$f":"INDEX(GDP,MATCH($Q11,riigid,0),MATCH(Y$10,aastad,0))","v":1161878},{"$f":"INDEX(GDP,MATCH($Q11,riigid,0),MATCH(Z$10,aastad,0))","v":1202193},{"$f":"INDEX(GDP,MATCH($Q11,riigid,0),MATCH(AA$10,aastad,0))","v":1245331}]
["European Union - 28 countries (2013-2020)",12845661.1,13235226.5,13501730.6,13615090.1,14091450.199999999,14853945.5,14985514.800000001,15409885,15908558.4,16441458.1,null,"Luksemburg","Luxembourg",null,null,"Croatia",{"$f":"INDEX(GDP,MATCH($Q12,riigid,0),MATCH(R$10,aastad,0))","v":45111.8},{"$f":"INDEX(GDP,MATCH($Q12,riigid,0),MATCH(S$10,aastad,0))","v":44793},{"$f":"INDEX(GDP,MATCH($Q12,riigid,0),MATCH(T$10,aastad,0))","v":43940.800000000003},{"$f":"INDEX(GDP,MATCH($Q12,riigid,0),MATCH(U$10,aastad,0))","v":43703.199999999997},{"$f":"INDEX(GDP,MATCH($Q12,riigid,0),MATCH(V$10,aastad,0))","v":43401.3},{"$f":"INDEX(GDP,MATCH($Q12,riigid,0),MATCH(W$10,aastad,0))","v":44616.4},{"$f":"INDEX(GDP,MATCH($Q12,riigid,0),MATCH(X$10,aastad,0))","v":46615.5},{"$f":"INDEX(GDP,MATCH($Q12,riigid,0),MATCH(Y$10,aastad,0))","v":49094.400000000001},{"$f":"INDEX(GDP,MATCH($Q12,riigid,0),MATCH(Z$10,aastad,0))","v":51625.1},{"$f":"INDEX(GDP,MATCH($Q12,riigid,0),MATCH(AA$10,aastad,0))","v":53936.7}]
["European Union - 15 countries (1995-2004)",11828487.4,12168229.5,12422241.5,12517879.4,12960800.9,13663817.9,13765423.699999999,14084398.9,14489156.300000001,14929805.6,null,"Läti","Latvia",null,null,"Italy",{"$f":"INDEX(GDP,MATCH($Q13,riigid,0),MATCH(R$10,aastad,0))","v":1611279.4},{"$f":"INDEX(GDP,MATCH($Q13,riigid,0),MATCH(S$10,aastad,0))","v":1648755.8},{"$f":"INDEX(GDP,MATCH($Q13,riigid,0),MATCH(T$10,aastad,0))","v":1624358.7},{"$f":"INDEX(GDP,MATCH($Q13,riigid,0),MATCH(U$10,aastad,0))","v":1612751.3},{"$f":"INDEX(GDP,MATCH($Q13,riigid,0),MATCH(V$10,aastad,0))","v":1627405.6},{"$f":"INDEX(GDP,MATCH($Q13,riigid,0),MATCH(W$10,aastad,0))","v":1655355},{"$f":"INDEX(GDP,MATCH($Q13,riigid,0),MATCH(X$10,aastad,0))","v":1695786.8},{"$f":"INDEX(GDP,MATCH($Q13,riigid,0),MATCH(Y$10,aastad,0))","v":1736592.8},{"$f":"INDEX(GDP,MATCH($Q13,riigid,0),MATCH(Z$10,aastad,0))","v":1766168.2},{"$f":"INDEX(GDP,MATCH($Q13,riigid,0),MATCH(AA$10,aastad,0))","v":1787664.1}]
["Euro area (EA11-1999, EA12-2001, EA13-2007, EA15-2008, EA16-2009, EA17-2011, EA18-2014, EA19-2015)",9474062.8000000007,9747756.5,9781522.9000000004,9876002.3000000007,10131358,10524277.199999999,10817187.6,11200947.5,11562207.800000001,11905421.4,null,"Madalmaad","Netherlands"]
["Euro area - 19 countries  (from 2015)",9534696.5,9799209,9836952.8000000007,9933832.6999999993,10167902.699999999,10524277.199999999,10817187.6,11200947.5,11562207.800000001,11905421.4,null,"Malta","Malta"]
["Euro area - 12 countries (2001-2006)",9343596.5,9596017.9000000004,9627129.6999999993,9720519.9000000004,9947717.9000000004,10295681.4,10580911.199999999,10949276.300000001,11292871.6,11621233.1,null,"Portugal","Portugal"]
["Belgium",363140.1,375967.8,386174.7,392880,403003.3,416701.4,430372.1,446364.9,459819.8,473638.9,null,"Prantsusmaa","France"]
["Bulgaria",38044.1,41252.6,42033.5,41885.4,42876.1,45675.8,48620.5,52310,56086.9,60675.3,null,"Saksamaa","Germany",null,null,"Siin jäi töö pooleli"]
["Czechia",156718.20000000001,164040.5,161434.29999999999,157741.6,156660,168473.3,176370.1,191721.8,207570.3,220200.7,null,"Slovakkia","Slovakia"]
["Denmark",243165.4,247879.9,254578,258742.7,265757,273017.59999999998,283109.7,292408,301340.90000000002,310937.09999999998,null,"Sloveenia","Slovenia"]
["Germany (until 1990 former territory of the FRG)",2564400,2693560,2745310,2811350,2927430,3030070,3134100,3244990,3344370,3435760,null,"Soome","Finland"]
["Estonia",14860.7,16826.8,18050.7,19033.400000000001,20180,20782.2,21693.599999999999,23775.8,26035.9,28037.200000000001]
["Ireland",167732.29999999999,170827,175115.7,179661.3,194818.2,262833.40000000002,271683.59999999998,297130.8,324038.2,347215.3]
["Greece",226031.4,207028.9,191203.9,180654.3,178656.5,177258.4,176487.9,180217.60000000001,184713.60000000001,187456.5]
["Spain",1072709,1063763,1031099,1020348,1032158,1077590,1113840,1161878,1202193,1245331]
["France",1995289,2058369,2088804,2117189,2149765,2198432,2234129,2295063,2353090,2418997]
["Croatia",45111.8,44793,43940.800000000003,43703.199999999997,43401.3,44616.4,46615.5,49094.400000000001,51625.1,53936.7]
["Italy",1611279.4,1648755.8,1624358.7,1612751.3,1627405.6,1655355,1695786.8,1736592.8,1766168.2,1787664.1]
["Cyprus",19410,19803,19440.8,17995,17408.5,17826.900000000001,18872.900000000001,20039.7,21137.8,21943.599999999999]
["Latvia",17817.7,20218.7,22098.2,22845.4,23654.2,24426,25072.6,26797.8,29056.1,30476.1]
["Lithuania",27955.3,31233.7,33331.699999999997,34985,36544.800000000003,37321.800000000003,38893.4,42269.4,45264.4,48339.199999999997]
["Luxembourg",40177.800000000003,43164.6,44112.1,46499.6,49824.5,52065.8,54867.199999999997,56814.2,60053.1,63516.3]
["Hungary",98986.8,101552.7,99733.6,102032.3,105905.9,112210.3,115259.2,125603.1,133782.20000000001,143826.4]
["Malta",6599.5,6835.8,7164.6,7644.9,8507.2999999999993,9628,10338.9,11284.4,12366.3,13208.5]
["Netherlands",639187,650359,652966,660463,671560,690008,708337,738146,774039,812051]
["Austria",295896.59999999998,310128.7,318653,323910.2,333146.09999999998,344269.2,357299.7,370295.8,385711.9,398521.9]
["Poland",361803.9,380241.7,389376.8,394733.8,411163.2,430258.1,426555.7,467312.9,496360.9,527033.19999999995]
["Portugal",179610.8,176096.2,168295.6,170492.3,173053.7,179713.2,186489.8,195947.2,204304.8,212302.8]
["Romania",125408.8,131925.4,133147.1,143801.60000000001,150458,160297.79999999999,170393.60000000001,187772.7,204640.5,223337.4]
["Slovenia",36363.9,37058.6,36253.300000000003,36454.300000000003,37634.300000000003,38852.6,40366.6,42987.1,45754.8,48006.6]
["Slovakia",68093,71214.399999999994,73483.8,74354.8,76255.899999999994,79758.2,81038.399999999994,84517,89721,94177]
["Finland",188143,197998,201037,204321,206897,211385,217518,225835.9,233619.20000000001,240078]
["Sweden",374329.5,411873.8,428825.4,440191.2,437540.9,454184.3,466347.6,479605.4,471207.2,474683.3]
["United Kingdom",1867396,1912457.9,2111708.4,2098425.7000000002,2309785.1,2640934.6,2435055.2000000002,2363109.2999999998,2423736.6,2523312.5]
["Iceland",10332.4,10889,11458.5,12064.1,13389.9,15679.8,18646.099999999999,21704.9,21795.200000000001,21602.7]
["Liechtenstein",":",":",":",4812.3999999999996,5021.7,5649.1,5637.7,5804.3,5822.5,":"]
["Norway",323760.90000000002,358339.5,396523.5,393408.7,375947.3,347632.1,333471.3,353316.4,367893.7,359109.3]
["Switzerland",441085.7,504020.9,519716.4,518379.5,534923.69999999995,612658.4,606773.4,602268.19999999995,597008.9,628106.6]
["Montenegro",3125.1,3264.8,3181.5,3362.5,3457.9,3654.5,3954.2,4299.1000000000004,4663.1000000000004,":"]
["North Macedonia",7108.3,7544.2,7584.8,8149.6,8562,9072.2999999999993,9656.5,10038.299999999999,10698.1,":"]
["Albania",8996.6,9268.2999999999993,9585.7999999999993,9625.4,9968.6,10264.1,10719.9,11559,12820.1,13643.7]
["Serbia",31545.8,35431.699999999997,33679.300000000003,36426.699999999997,35467.5,35715.5,36723,39183.300000000003,42855.5,45911.6]
["Turkey",581023.80000000005,596491.19999999995,678483.7,714313.4,703411.6,772978.8,780224.9,754902.2,652519.9,":"]
["Bosnia and Herzegovina",12968.9,13411.8,13407.5,13691.8,13988.3,14617.4,15289.9,16042.4,16759.3,":"]
["Kosovo (under United Nations Security Council Resolution 1244/99)",4402,4814.5,5058.8,5326.6,5567.5,5807,6070.1,6413.8,6725.9,":"]